Cogmind - Beta 10.2 @@@ ROGUE MODE // 2021.07.13 @ 13:18:42 Player: Demise Result: Destroyed by D-53 Grenadier with Mini Grenade Launcher Performance ------------- Evolutions (0) 0 Regions Visited (2) 400 Robots Destroyed (40) 200 Value Destroyed (916) 916 Prototype IDs (0) 0 Alien Tech Used (0) 0 Bonus (0) 0 TOTAL SCORE: 1516 Bonus ------- None Cogmind --------- Core Integrity 0/250 Matter 234/300 Energy 100/100 System Corruption 3% Temperature Cool (0) Movement Core (400) Ox7 Location -10/Mines Parts ------- > --- POWER (1) -------- (None) > --- PROPULSION (2) --- (None) > --- UTILITY (2) ------ Small Storage Unit Large Storage Unit > --- WEAPON (2) ------- Mini Grenade Launcher Mini Grenade Launcher > --- INVENTORY (12) --- Ion Engine Large Matter Pod (150) Signal Interpreter Transport Network Coupler Hacking Suite Hacking Suite Light Assault Rifle Datajack Mining Laser Heavy Hammer Peak State ------------ > --- POWER ------------ Light Nuclear Core > --- PROPULSION ------- Light Treads Light Treads > --- UTILITY ---------- Small Storage Unit Large Storage Unit > --- WEAPON ----------- Mini Grenade Launcher Mini Grenade Launcher > --- INVENTORY -------- Ion Engine Large Matter Pod Signal Interpreter Transport Network Coupler Hacking Suite Hacking Suite Light Assault Rifle Datajack Mining Laser Heavy Hammer [Rating: 12] Favorites ----------- Power Ion Engine Engine Ion Engine Power Core Light Nuclear Core Propulsion Light Treads Treads Light Treads Utility Small Storage Unit Storage Small Storage Unit Processor Signal Interpreter Weapon Assault Rifle Energy Gun EM Pulse Gun Ballistic Gun Assault Rifle Launcher Mini Grenade Launcher Special Weapon Mining Laser Impact Weapon Heavy Hammer Special Melee Weapon Datajack Build | -11 -10 -10 ------- Run | Scr Mat Min Slots Evolved . | . . . Power . | . . . Propulsion . | . . . Utility . | . . . Weapon . | . . . Parts Attached 37 | 5 27 5 Power 7 | 1 5 1 Engine 6 | 1 5 . Core 1 | . . 1 Reactor . | . . . Propulsion 7 | 2 4 1 Treads 7 | 2 4 1 Leg . | . . . Wheel . | . . . Hover . | . . . Flight . | . . . Utility 4 | . 4 . Device . | . . . Storage 3 | . 3 . Processor 1 | . 1 . Hackware . | . . . Protection . | . . . Artifact . | . . . Weapon 19 | 2 14 3 Energy Gun 5 | 1 4 . Energy Cannon . | . . . Ballistic Gun 9 | 1 7 1 Ballistic Cannon . | . . . Launcher 2 | . . 2 Special Weapon 1 | . 1 . Impact Weapon 1 | . 1 . Slashing Weapon . | . . . Piercing Weapon . | . . . Special Melee Weapon 1 | . 1 . Unidentified Prototypes . | . . . Parts Lost 7 | . 2 5 Power 1 | . . 1 Propulsion 3 | . 1 2 Utility . | . . . Weapon 3 | . 1 2 Highest Loss Streak 3 | . 1 3 Average Slot Usage (%) 97 | . 96 98 Engine 13 | . 14 10 Treads 26 | . 26 27 Storage 25 | . 24 28 Processor 1 | . 2 . Energy Gun 4 | . 6 . Ballistic Gun 22 | . 20 26 Naked Turns . | . . . Heaviest Build 30 | 7 30 28 Greatest Support 40 | 40 40 40 Greatest Overweight (x) 1 | . 1 . Average Overweight (x) . | . . . Largest Inventory Capacity 12 | 4 12 12 Average Capacity 10 | 4 10 12 Most Carried 12 | 4 12 12 Average Carried 9 | 2 9 11 Final Capacity 12 | 4 12 12 Final Carried 12 | 4 12 10 Class Distribution -------------------- 100% | Mutant Dominant Class ---------------- Mutant | -10/Materials Mutant | -10/Mines Resources | -11 -10 -10 ----------- Run | Scr Mat Min Matter Collected 1304 | 262 878 164 Remotely . | . . . Salvage Created 1463 | 110 1038 315 Parts 73 | 3 58 12 Haulers Intercepted 2 | . 2 . Recyclers Shooed 4 | 1 1 2 Parts Field Recycled . | . . . Retrieved Matter . | . . . Parts Self-Destructed . | . . . Prevented . | . . . Kills | -11 -10 -10 ------- Run | Scr Mat Min Combat Hostiles Destroyed 28 | . 22 6 Guns 27 | . 22 5 AOE 1 | . . 1 Classes Destroyed 8 | 2 5 1 Tunneler 1 | 1 . . Hauler 2 | . 2 . Recycler 4 | 1 2 1 Operator 2 | . 2 . Watcher 3 | . 3 . Swarmer 9 | . 9 . Grunt 18 | . 13 5 Demolisher 1 | . . 1 Best Kill Streak 5 | 2 5 2 Combat Bots Only 4 | . 4 2 Max Kills in Single Turn 1 | 1 1 1 Gunslinging . | . . . Exploded 1 | . . 1 Melee . | . . . Uniques/NPCs Destroyed . | . . . Combat | -11 -10 -10 -------- Run | Scr Mat Min Damage Taken 1425 | . 715 710 Core 255 | . 117 138 Absorbed by Shields . | . . . Core Remaining (%) 100 | 100 . . Volleys Fired 156 | 4 104 48 Largest 2 | 2 2 2 Hottest 100 | 60 100 60 Shots Fired 292 | 8 202 82 Gun 283 | 8 199 76 Cannon . | . . . Launcher 6 | . . 6 Special 3 | . 3 . Kinetic 225 | 4 145 76 Thermal 25 | . 25 . Explosive 6 | . . 6 Electromagnetic 36 | 4 32 . Robot Hit Streak 18 | 7 18 15 Robot Miss Streak 3 | . 3 2 Penetration Max . | . . . Secondary Targets 2 | . 2 . Max Gunslinging Chain 1 | . 1 . Shots Hit Robots 202 | 7 132 63 Core Hits 79 | 3 46 30 Critical Hits 3 | . 1 2 Critical Kills 1 | . . 1 Critical Parts Destroyed 2 | . 1 1 Melee Attacks 1 | . 1 . Impact 1 | . 1 . Slashing . | . . . Piercing . | . . . Sneak Attacks 1 | . 1 . Combat Hostiles . | . . . Follow-up Attacks . | . . . Damage Inflicted 2369 | 84 1596 689 Guns 2046 | 84 1442 520 Cannons . | . . . Explosions 215 | . 46 169 Melee 108 | . 108 . Ramming . | . . . Kinetic 1573 | 43 1010 520 Thermal 214 | . 214 . Explosive 169 | . . 169 Electromagnetic 305 | 41 264 . Impact 108 | . 108 . Slashing . | . . . Piercing . | . . . Highest Corruption 3 | . 3 3 Average Corruption 2 | . 2 3 Corruption Purged . | . . . Effects 35 | . 25 10 Message Errors 9 | . 5 4 Matter Fused 4 | . 3 1 Heat Flow Errors 5 | . 4 1 Energy Discharges 4 | . 4 . Data Loss (minor) 5 | . 3 2 Targeting Errors 7 | . 5 2 Weapon Failures 1 | . 1 . Overload Shots . | . . . Overflow Damage 6 | . 6 . Projectiles . | . . . Explosions 6 | . 6 . Melee . | . . . Knockbacks . | . . . Impact . | . . . Kinetic . | . . . Secondary . | . . . Self-Inflicted Damage . | . . . Shots . | . . . Rammed . | . . . Targets Rammed . | . . . Kicked . | . . . Crushed . | . . . Highest Temperature 214 | . 214 140 Average Temperature 50 | . 61 21 Received Heat Transfer 501 | . 252 249 Siege Activations . | . . . Robots Corrupted . | . . . Combat Hostiles . | . . . Parts Fried . | . . . Impact Corruptions . | . . . Robots Melted . | . . . Combat Hostiles . | . . . Parts Melted . | . . . Heat Transferred 450 | . 450 . Parts Sabotaged . | . . . Parts Stolen . | . . . Parts Stripped . | . . . Power Chain Reactions 1 | . 1 . Missiles Intercepted . | . . . Alert | -11 -10 -10 ------- Run | Scr Mat Min Peak Influence 303 | 10 303 145 Initial 105 | . 6 105 Average 168 | 2 195 107 Maximum Alert Level 1 | . 1 . Low Security (%) 62 | 100 48 100 Level 1 37 | . 52 . Level 2 . | . . . Level 3 . | . . . Level 4 . | . . . Level 5 . | . . . High Security . | . . . Max Security . | . . . Squads Dispatched 7 | . 7 . Investigation 4 | . 4 . Extermination . | . . . Reinforcement 3 | . 3 . Assault . | . . . Garrison . | . . . Intercept . | . . . Construction Impeded . | . . . Haulers Reinforced . | . . . Stealth | -11 -10 -10 --------- Run | Scr Mat Min Distress Signals 2 | . 2 . Communications Jammed . | . . . Distress Signals . | . . . Times Spotted 54 | . 40 14 Peak Tracking Total 10 | . 5 10 Tactical Retreats 3 | . 2 1 Traps | -11 -10 -10 ------- Run | Scr Mat Min Traps Triggered 3 | . 3 . Indirectly . | . . . Trap Hack Attempts 2 | . 2 . Triggered . | . . . Disarmed . | . . . Reprogrammed 1 | . 1 . Reused 1 | . 1 . Traps Extracted . | . . . Installed . | . . . Triggered 1 | . 1 . Machines | -11 -10 -10 ---------- Run | Scr Mat Min Machines Disabled 2 | . 2 . Max in Single Turn 1 | . 1 . Machines Sabotaged . | . . . Garrisons Compromised . | . . . Overloaded Fab Kills . | . . . Fab Network Shutdowns . | . . . Hacking | -11 -10 -10 --------- Run | Scr Mat Min Machines Accessed 4 | . 4 . Terminals 1 | . 1 . Fabricators . | . . . Repair Stations 1 | . 1 . Recycling Units 2 | . 2 . Scanalyzers . | . . . Garrison Access . | . . . Total Hacks 14 | . 14 . Successful 9 | . 9 . Failed 5 | . 5 . Catastrophic . | . . . Database Lockouts . | . . . Manual 7 | . 7 . Terminals 4 | . 4 . Fabricators . | . . . Repair Stations 3 | . 3 . Recycling Units 7 | . 7 . Scanalyzers . | . . . Garrison Access . | . . . Terminal Hacks . | . . . Fabricator Hacks . | . . . Repair Station Hacks 3 | . 3 . Scan Component 2 | . 2 . Repair 1 | . 1 . Recycling Unit Hacks 2 | . 2 . Retrieve Components 2 | . 2 . Scanalyzer . | . . . Garrison Access Hacks . | . . . Unauthorized Hacks 4 | . 4 . Terminals 1 | . 1 . Botnet 1 | . 1 . Fabricators . | . . . Repair Stations . | . . . Recycling Units 3 | . 3 . Mask 1 | . 1 . Tunnel 2 | . 2 . Scanalyzers . | . . . Garrison Access . | . . . Data Cores Recovered . | . . . Used . | . . . Hacking Detections 4 | . 4 . Full Trace Events 2 | . 2 . Feedback Events . | . . . Feedback Blocked . | . . . Robot Schematics Acquired . | . . . Robots Built . | . . . Matter . | . . . Time . | . . . Total Robot Build Rating . | . . . Part Schematics Acquired . | . . . Parts Built . | . . . Matter . | . . . Time . | . . . Total Part Build Rating . | . . . Parts Repaired 1 | . 1 . Time 26 | . 26 . Parts Recycled . | . . . Recycled Matter . | . . . Retrieved Matter . | . . . Retrieved Components 10 | . 10 . Parts Scanalyzed . | . . . Part Schematics Acquired . | . . . Parts Damaged . | . . . Bothacking | -11 -10 -10 ------------ Run | Scr Mat Min Used RIF Installer . | . . . Robots Hacked . | . . . Non-combat . | . . . Combat . | . . . Robot Hacks Applied . | . . . Relay Couplers Released . | . . . Robots Rewired . | . . . Allies Hacked . | . . . Hacks Repelled . | . . . Allies | -11 -10 -10 -------- Run | Scr Mat Min Total Allies . | . . . Largest Group . | . . . Highest-Rated Group . | . . . Highest-Rated Ally . | . . . Total Orders . | . . . Ally Attacks . | . . . Total Damage . | . . . Kills . | . . . Allies Corrupted . | . . . Allies Melted . | . . . Intel | -11 -10 -10 ------- Run | Scr Mat Min Robot Analysis Total . | . . . Derelict Logs Recovered 2 | . . 2 Drone Launches . | . . . Drone Recoveries . | . . . Exploration | -11 -10 -10 ------------- Run | Scr Mat Min Turns Passed 2482 | 73 1800 609 Spaces Moved 1183 | 33 851 299 Core 2 | 2 . . Treads 1181 | 31 851 299 Legs . | . . . Wheels . | . . . Hover . | . . . Flight . | . . . Fastest Speed 50 | 50 160 160 Average Speed 161 | 153 161 160 Slowest Speed 180 | 160 180 160 Overloaded Moves . | . . . Propulsion Burnouts . | . . . Robots Hopped . | . . . Cave-ins Triggered . | . . . Exploration Rate (%) 51 | 4 97 53 Regions Visited 2 Branch Regions 1 Pre-discovered Areas 2 | . 2 . Known Exits Taken 1 | . 1 . Unknown Exits Taken 1 | 1 . . Scrap Searched 2 | . . 2 Spaces Dug 3 | . 3 . Terrain Destroyed 18 | . 7 11 Melee . | . . . Projectile 3 | . 3 . AOE 15 | . 4 11 Terrain Rammed . | . . . Walls Destroyed . | . . . Machines Disabled . | . . . Actions | -11 -10 -10 --------- Run | Scr Mat Min Total 1474 | 46 1070 358 Wait 61 | . 57 4 Move 1181 | 32 850 299 Hop . | . . . Pick Up 20 | 5 15 . Fast Attach 12 | 4 7 1 Attach 7 | 1 4 2 Detach 1 | . 1 . Swap 18 | . 16 2 Drop 15 | . 13 2 Fire 156 | 4 104 48 Melee 1 | . 1 . Ram . | . . . Kick . | . . . Crush . | . . . Escape Stasis . | . . . Rewire . | . . . Trap 2 | . 2 . Miscellaneous . | . . . Route ------- -11/Scrapyard -10/Materials (discovered 5 exits: *Mat x3 / *Min x2) -10/Mines (discovered 3 exits: *Mat x2 / [*Exi]) History --------- Turn | Location | Event 11 | -11/Scrapyard | Discovered new exit (range 15) 74 | -11/Scrapyard | Entered Materials 199 | -10/Materials | Discovered new exit (range 9) 210 | -10/Materials | Identified exit to Mines 315 | -10/Materials | Build established: Mutant 374 | -10/Materials | Discovered new exit (range 8) 382 | -10/Materials | Identified exit to Materials 739 | -10/Materials | Discovered exit to Materials (range 3) 824 | -10/Materials | Discovered exit to Mines (range 7) 955 | -10/Materials | Repaired Assault Rifle 1518 | -10/Materials | Discovered exit to Materials (range 6) 1874 | -10/Materials | Entered Mines 1968 | -10/Mines | Learned location of 1 exit from Materials 2027 | -10/Mines | Deemed a non-threat by the Exiles lab entrance 2027 | -10/Mines | Discovered new exit (range 5) 2077 | -10/Mines | Received a Rocket Launcher from a helpful Derelict 2140 | -10/Mines | Found a hidden stash of uninstalled traps 2180 | -10/Mines | Discovered exit to Materials (range 6) 2277 | -10/Mines | Learned Materials stockpile data 2280 | -10/Mines | Discovered exit to Materials (range 8) 2319 | -10/Mines | Core integrity fell below 50% 2458 | -10/Mines | Assembled infested the area 2479 | -10/Mines | Core integrity fell below 20% 2483 | -10/Mines | Destroyed by D-53 Grenadier with Mini Grenade Launcher Last Messages --------------- 02474_ U-05 Engineer lays Concrete. 02475_ as-70724 powers down. 02475_ as-33188 powers down. 02475_ as-35600 powers down. 02475_ U-05 Engineer lays Concrete. 02476_ as-35600 destroyed. 02476_ as-33188 destroyed. 02476_ as-70724 destroyed. 02476_ System corrupted: Mni. Grenade Launcher targeting data glitched. 02478_ The unstable cave ceiling collapses. 02478_ Lgt. Nuclear Core destroyed. 02478_ Lgt. Treads destroyed. 02479_ K-01 Serf cleans the Laser Drill. 02479_ System corrupted: Mni. Grenade Launcher targeting data glitched. 02480_ The unstable cave ceiling collapses. 02481_ Lgt. Treads destroyed. 02481_ HV Slug penetrates Wall. 02481_ HV Slug penetrates Earth. 02482_ K-01 Serf cleans the Laser Drill. 02482_ D-53 Grenadier destroyed. Map ----- +----------------------------------------------------+ | | | | | | | | | | | | | | | | | | | | | | | | | | | | | | | | | | | | | ?????????????????????????????????????????????? | | ???########??????????????????????????????????? | | ??## ##??????????######?????????????????? | | ??# #?????????## ###???????????????? | | ??# < ######???## ##??????????????? | | ### = #???# #??????????????? | | % !%#???# #??????????????? | | ##### ######%#???# @ #??????????????? | | ????### #????#=#??# #??????????????? | | ??????# #????# #??# #??????????????? | | ??????# #????# ## ##??????????????? | | ??????# #????# ## # # ; ??????????????? | | #?????# #???## # ##### #?????????????? | | ???# #??## % ???? #?????????????? | | """ ##%*#### !=! d ?????#?????????????? | | """ =%* ## % % #?????????????? | | """ ##### ???????????? | | ?????# r ########???????????? | | ###??????# # #???????????????????? | | ?????????# """k## # ?????????????????????? | | ?????????# """ ######?????????????????????? | | ????????# """ #??????????????????????????? | | ???????# ??????????????????????????? | | ?????? ??????????????????????????? | | ????? ? ??????????????????????????? | | ????? ?? ?????????????????????????? | | ????? #??# ?????????????????????????? | | ??????? #???## ?????????????????????????? | | ?????????????????# ?????????????????????????? | | ??????????????????##?????????????????????????? | | #########????????????????????????????????????? | | # #????????????????????????????????????? | +----------------------------------------------------+ Best States ------------- Heat Dissipation 25 Energy Generation 14 Energy Capacity 250 Matter Stores 377 Matter Capacity 400 Sight Range 16 Terrain Scan Density 10 Evasion (%) 40 Recoil Reduction 2 Item Schematics ----------------- None Robot Schematics ------------------ None Fabricated ------------ Nothing Alien Tech Used ----------------- None Achievements -------------- None Challenges ------------ None Game ------ Seed XenonPulseSource Manual? 0 Play Time 00:16:43 Cumulative 391.8 hours Start 2021.07.13 @ 13:04:36 End 2021.07.13 @ 13:18:42 Sessions 1 Manual Loads 0 Difficulty Rogue Special Mode None Game No. 321 Rogue 321 Adventurer 0 Explorer 0 Win Type - Total 1 Types 0/0/0/1/0/0/0/0/0 Lore% 70 Gallery% 79 Achievement% 60 Wizard Run 0 Options --------- ASCII 0 Keyboard 1 Movement Numpad Keybinds 0 Fullscreen 1 Font 12/Terminus Map View 83x54 Tactical HUD 1 Map Filters NONE Filters NONE Steam 1 RUN: 08d60edf-cf7d-4ae1-82d9-666c47cdb90b